Cogmind - Beta 16 @@@ ROGUE MODE // 2026.02.03 @ 20:30:24 Player: Aardbot Result: Destroyed by G-34 Mercenary with Small Laser Performance ------------- Evolutions (1) 500 Regions Visited (2) 400 Robots Destroyed (26) 130 Value Destroyed (748) 748 Prototype IDs (2) 40 Alien Tech Used (0) 0 Bonus (0) 0 TOTAL SCORE: 1818 Bonus ------- None Cogmind --------- Core Integrity 0/400 Matter 300/300 Energy 100/100 System Corruption 0% Temperature Cool (6) Movement Core (1350) Ox26 Location -9/Materials Parts ------- > --- POWER (2) -------- (None) > --- PROPULSION (3) --- (None) > --- UTILITY (2) ------ Huge Storage Unit > --- WEAPON (2) ------- (None) > --- INVENTORY (25) --- Ion Engine Ion Engine Light Ion Engine Light Nuclear Core Aluminum Leg Aluminum Leg Heat Sink Improved Heat Sink Huge Storage Unit Signal Interpreter Peak State ------------ > --- POWER ------------ Light Ion Engine Light Nuclear Core > --- PROPULSION ------- Light Treads Light Treads Improved Flight Unit > --- UTILITY ---------- Heat Sink Huge Storage Unit > --- WEAPON ----------- Beam Cannon Autogun > --- INVENTORY -------- Ion Engine Ion Engine Light Nuclear Core Aluminum Leg Aluminum Leg Improved Heat Sink Huge Storage Unit Signal Interpreter Grenade Launcher [Rating: 15] Favorites ----------- Power Ion Engine Engine Ion Engine Power Core Light Nuclear Core Propulsion Light Treads Treads Light Treads Wheel Wheel Flight Unit Improved Flight Unit Utility Small Storage Unit Device Heat Sink Storage Small Storage Unit Weapon Assault Rifle Energy Cannon Beam Cannon Ballistic Gun Assault Rifle Launcher Grenade Launcher Build | -11 -10 -9 ------- Run | Yrd Mat Mat Slots Evolved 2 | . . 2 Power 1 | . . 1 Propulsion 1 | . . 1 Utility . | . . . Weapon . | . . . Parts Attached 19 | 6 10 3 Power 4 | 1 2 1 Engine 3 | 1 1 1 Core 1 | . 1 . Reactor . | . . . Propulsion 5 | 2 2 1 Treads 2 | . 2 . Leg . | . . . Wheel 2 | 2 . . Hover . | . . . Flight 1 | . . 1 Utility 4 | 1 3 . Device 1 | . 1 . Storage 3 | 1 2 . Processor . | . . . Hackware . | . . . Protection . | . . . Artifact . | . . . Weapon 6 | 2 3 1 Energy Gun . | . . . Energy Cannon 1 | . 1 . Ballistic Gun 4 | 2 1 1 Ballistic Cannon . | . . . Launcher 1 | . 1 . Special Weapon . | . . . Impact Weapon . | . . . Slashing Weapon . | . . . Piercing Weapon . | . . . Special Melee Weapon . | . . . Unidentified Prototypes 2 | . . 2 Parts Lost 11 | . 4 7 Power 3 | . 1 2 Propulsion 3 | . 1 2 Utility . | . . . Weapon 5 | . 2 3 Highest Loss Streak 4 | . 2 4 To Critical Strikes . | . . . Average Backups 8 | 5 8 9 Power 2 | 1 2 3 Propulsion 2 | 3 2 2 Utility 2 | . 1 3 Weapon . | 1 1 . Tool/Special . | . . . Unused Backups 7 | . . 7 Power 2 | . . 2 Propulsion 2 | . . 2 Utility 3 | . . 3 Weapon . | . . . Tool/Special . | . . . Average Slot Usage (%) 87 | . 95 75 Engine 8 | . 11 4 Core 5 | . 1 10 Treads 17 | . 15 20 Wheel 7 | . 12 . Device 5 | . 1 10 Storage 18 | . 23 11 Energy Cannon 7 | . 8 6 Ballistic Gun 12 | . 16 7 Launcher 3 | . 3 2 Peak Build Rating 15 | 6 10 15 Average Rating 8 | 4 7 10 On Entrance 5 | . 6 10 Avg Prop Armor Cover (%) . | . . . Naked Turns . | . . . Heaviest Build 95 | 14 92 95 Greatest Support 40 | 26 40 40 Greatest Overweight (x) 28 | . 2 28 Average Overweight (x) . | . . 2 Largest Inventory Capacity 25 | 8 25 25 Average Capacity 16 | 7 12 25 Most Carried 10 | 8 10 10 Average Carried 8 | 6 8 9 Final Capacity 25 | 8 25 25 Final Carried 10 | 6 9 10 Class Distribution -------------------- 100% | Mutant Dominant Class ---------------- Mutant | -10/Materials Mutant | -9/Materials Resources | -11 -10 -9 ----------- Run | Yrd Mat Mat Matter Collected 645 | 179 335 131 Remotely . | . . . Salvage Created 833 | . 610 223 Parts 53 | . 34 19 Haulers Intercepted 2 | . 2 . Recyclers Shooed . | . . . Parts Field Recycled . | . . . Retrieved Matter . | . . . Parts Self-Destructed . | . . . Prevented . | . . . Parts Restored . | . . . Kills | -11 -10 -9 ------- Run | Yrd Mat Mat Combat Hostiles Destroyed 19 | . 13 6 Guns 7 | . 3 4 Cannons 10 | . 8 2 AOE 1 | . 1 . Classes Destroyed 5 | . 3 2 Hauler 2 | . 2 . Watcher 5 | . 3 2 Swarmer 3 | . . 3 Grunt 15 | . 13 2 Sentry 1 | . . 1 Best Kill Streak 6 | . 6 3 Combat Bots Only 3 | . 3 3 Max Kills in Single Turn 2 | . 2 1 Gunslinging . | . . . Exploded 1 | . 1 . Melee . | . . . Uniques/NPCs Destroyed . | . . . Combat | -11 -10 -9 -------- Run | Yrd Mat Mat Hostile Shots Fired 137 | . 76 61 Missed 31 | . 19 12 Hits 106 | . 57 49 Melee 10 | . . 10 Projectile 96 | . 57 39 Critical Strikes 6 | . 3 3 Damage Taken 1715 | . 984 731 Core 579 | . 177 402 Absorbed by Shields . | . . . Core Remaining (%) 64 | 100 29 . Volleys Fired 66 | . 41 25 Largest 2 | . 2 2 Hottest 90 | . 90 83 Shots Fired 116 | . 80 36 Gun 72 | . 47 25 Cannon 40 | . 29 11 Launcher 4 | . 4 . Special . | . . . Kinetic 72 | . 47 25 Thermal 40 | . 29 11 Explosive 4 | . 4 . Electromagnetic . | . . . Robot Hit Streak 8 | . 8 5 Robot Miss Streak 5 | . 5 5 Penetration Max . | . . . Secondary Targets . | . . . Shots Hit Robots 61 | . 44 17 Core Hits 33 | . 23 10 Critical Kills 1 | . 1 . Critical Parts Destroyed . | . . . Critical Strikes 1 | . 1 . Meltdown 1 | . 1 . Melee Attacks . | . . . Impact . | . . . Slashing . | . . . Piercing . | . . . Sneak Attacks . | . . . Combat Hostiles . | . . . Follow-up Attacks . | . . . Damage Inflicted 1430 | . 1119 311 Guns 530 | . 324 206 Cannons 388 | . 283 105 Explosions 512 | . 512 . Melee . | . . . Ramming . | . . . Kinetic 530 | . 324 206 Thermal 388 | . 283 105 Explosive 512 | . 512 . Electromagnetic . | . . . Impact . | . . . Slashing . | . . . Piercing . | . . . Highest Corruption . | . . . Average Corruption . | . . . Corruption Purged . | . . . Corruption Blocked . | . . . Overload Shots . | . . . Overflow Damage 126 | . 126 . Projectiles . | . . . Explosions 126 | . 126 . Melee . | . . . Knockbacks . | . . . Impact . | . . . Kinetic . | . . . Secondary . | . . . Self-Inflicted Damage 240 | . 240 . Shots 4 | . 4 . Rammed . | . . . Targets Rammed . | . . . Kicked . | . . . Crushed . | . . . Highest Temperature 187 | . 187 88 Average Temperature 65 | . 73 33 Received Heat Transfer 612 | . 450 162 Siege Activations . | . . . Martial Activations . | . . . Shielding Activations . | . . . Robots Disrupted . | . . . Combat Hostiles . | . . . Robots Corrupted . | . . . Combat Hostiles . | . . . Parts Fried . | . . . Impact Corruptions . | . . . Robots Melted 1 | . 1 . Combat Hostiles 1 | . 1 . Parts Melted 2 | . 2 . Heat Transferred 814 | . 592 222 Parts Sabotaged . | . . . Parts Stolen . | . . . Parts Stripped . | . . . Power Chain Reactions . | . . . Alert | -11 -10 -9 ------- Run | Yrd Mat Mat Maximum Alert Level . | . . . Low Security (%) 100 | 100 100 100 Level 1 . | . . . Level 2 . | . . . Level 3 . | . . . Level 4 . | . . . Level 5 . | . . . High Security . | . . . Max Security . | . . . Peak Influence 147 | . 147 83 Initial 57 | . . 57 Average 46 | . 67 29 Influence Increases 608 | . 437 171 Destroy 0b10 Robot/C 380 | . 260 120 Destroy 0b10 Robot/NC 35 | . 25 10 Destroy Leader 84 | . 60 24 Disable Machine 60 | . 60 . Destroy Structure 34 | . 32 2 Lose Combat Pursuer 15 | . . 15 Influence Decreases 608 | . 299 309 Entered New Map 81 | . . 81 Time Decay 467 | . 259 208 Lost Part 60 | . 40 20 Squads Dispatched 2 | . 2 . Investigation 1 | . 1 . Extermination . | . . . Reinforcement 1 | . 1 . Assault . | . . . Garrison . | . . . Intercept . | . . . Searches Triggered . | . . . Construction Impeded . | . . . Haulers Reinforced . | . . . Active Scanning Responses . | . . . Cargo Convoy Interrupts . | . . . Stealth | -11 -10 -9 --------- Run | Yrd Mat Mat Distress Signals 2 | . 1 1 Communications Jammed . | . . . Distress Signals . | . . . Times Spotted 32 | . 18 14 Peak Tracking Total 6 | . 4 6 Tactical Retreats 1 | . . 1 Traps | -11 -10 -9 ------- Run | Yrd Mat Mat Traps Triggered 2 | . 2 . Indirectly . | . . . Trap Hack Attempts . | . . . Triggered . | . . . Disarmed . | . . . Reprogrammed . | . . . Reused . | . . . Traps Extracted . | . . . Installed . | . . . Triggered . | . . . Machines | -11 -10 -9 ---------- Run | Yrd Mat Mat Machines Disabled 4 | . 4 . Max in Single Turn 2 | . 2 . Machines Repaired . | . . . Machines Dismantled . | . . . Machines Sabotaged . | . . . Overloaded Fab Kills . | . . . Hacking | -11 -10 -9 --------- Run | Yrd Mat Mat Machines Accessed . | . . . Terminals . | . . . Fabricators . | . . . Repair Stations . | . . . Recycling Units . | . . . Scanalyzers . | . . . Garrison Access . | . . . Total Hacks . | . . . Successful . | . . . Failed . | . . . Catastrophic . | . . . Database Lockouts . | . . . Manual . | . . . Terminals . | . . . Fabricators . | . . . Repair Stations . | . . . Recycling Units . | . . . Scanalyzers . | . . . Garrison Access . | . . . Terminal Hacks . | . . . Fabricator Hacks . | . . . Repair Station Hacks . | . . . Recycling Unit Hacks . | . . . Scanalyzer . | . . . Garrison Access Hacks . | . . . Unauthorized Hacks . | . . . Terminals . | . . . Fabricators . | . . . Repair Stations . | . . . Recycling Units . | . . . Scanalyzers . | . . . Garrison Access . | . . . Data Cores Recovered . | . . . Used . | . . . Hacking Detections . | . . . Full Trace Events . | . . . Feedback Events . | . . . Feedback Blocked . | . . . Robot Schematics Acquired . | . . . Robots Built . | . . . Authchips . | . . . Time . | . . . Total Robot Build Rating . | . . . Part Schematics Acquired . | . . . Parts Built . | . . . Authchips . | . . . Time . | . . . Total Part Build Rating . | . . . Part Studies Acquired . | . . . Parts Repaired . | . . . Time . | . . . Parts Recycled . | . . . Recycled Matter . | . . . Retrieved Matter . | . . . Retrieved Components . | . . . Parts Scanalyzed . | . . . Part Schematics Acquired . | . . . Parts Damaged . | . . . Bothacking | -11 -10 -9 ------------ Run | Yrd Mat Mat Used RIF Installer . | . . . Robots Hacked . | . . . Non-combat . | . . . Combat . | . . . Robot Hacks Applied . | . . . Relay Couplers Released . | . . . Fabnet Peak Effective % . | . . . Robots Rewired . | . . . Allies Hacked . | . . . Hacks Repelled . | . . . Allies | -11 -10 -9 -------- Run | Yrd Mat Mat Total Allies . | . . . Largest Group . | . . . Highest-Rated Group . | . . . Highest-Rated Ally . | . . . Total Orders . | . . . Ally Attacks . | . . . Total Damage . | . . . Kills . | . . . Allies Corrupted . | . . . Allies Melted . | . . . Intel | -11 -10 -9 ------- Run | Yrd Mat Mat Active Infowar (turns) . | . . . Robot Analysis Total . | . . . Derelict Logs Recovered . | . . . Drone Launches . | . . . Drone Recoveries . | . . . Exploration | -11 -10 -9 ------------- Run | Yrd Mat Mat Turns Passed 1274 | 117 677 480 Spaces Moved 660 | 114 421 125 Core 11 | 9 . 2 Treads 269 | . 146 123 Legs . | . . . Wheels 380 | 105 275 . Hover . | . . . Flight . | . . . Fastest Speed 50 | 50 90 320 Average Speed 159 | 86 126 337 Slowest Speed 1450 | 90 320 1450 Overloaded Moves . | . . . Propulsion Burnouts . | . . . Robots Hopped . | . . . Potential Cave-ins . | . . . Cave-ins Triggered . | . . . Exploration Rate (%) 29 | 4 67 17 Regions Visited 2 Branch Regions . Pre-discovered Areas . | . . . Known Exits Taken . | . . . Unknown Exits Taken 2 | 1 1 . Scrap Searched . | . . . Spaces Dug . | . . . Terrain Destroyed 42 | . 42 . Melee . | . . . Projectile . | . . . AOE 42 | . 42 . Terrain Rammed . | . . . Walls Destroyed . | . . . Machines Disabled . | . . . Actions | -11 -10 -9 --------- Run | Yrd Mat Mat Total 778 | 131 487 160 Wait . | . . . Move 658 | 113 420 125 Hop . | . . . Pick Up 28 | 12 12 4 Fast Attach . | . . . Attach 16 | 6 7 3 Detach . | . . . Swap 5 | . 3 2 Drop 5 | . 4 1 Fire 66 | . 41 25 Melee . | . . . Ram . | . . . Kick . | . . . Crush . | . . . Escape Stasis . | . . . Rewire . | . . . Trap . | . . . Miscellaneous . | . . . Route ------- -11/Scrapyard -10/Materials (discovered 4 exits: [*Mat x2] / [*Min x2]) -9/Materials History --------- Turn | Location | Event 6 | -11/Scrapyard | Discovered new exit (range 15) 118 | -11/Scrapyard | Entered Materials 160 | -10/Materials | Discovered new exit (range 16) 234 | -10/Materials | Discovered new exit (range 9) 293 | -10/Materials | Discovered new exit (range 5) 308 | -10/Materials | Build established: Mutant 442 | -10/Materials | Discovered new exit (range 16) 505 | -10/Materials | Core integrity fell below 50% 795 | -10/Materials | Entered another Materials area 795 | -9/Materials | Evolved 2 slots: Power x1, Propulsion x1 1265 | -9/Materials | Core integrity fell below 50% 1272 | -9/Materials | Core integrity fell below 20% 1275 | -9/Materials | Destroyed by G-34 Mercenary with Small Laser Last Messages --------------- K-01 Serf collects debris. S-10 Pest destroyed. Acquired 12 matter. K-01 Serf collects debris. Acquired 25 matter. R-06 Scavenger collects Flight Unit. K-01 Serf collects debris. K-01 Serf cleans the Terminal. R-06 Scavenger collects Flight Unit. U-05 Engineer builds a Door. Acquired 33 matter. U-05 Engineer works on Electrolysis Chamber. U-05 Engineer completes Electrolysis Chamber. Electrolysis Chamber comes online. Lgt. Treads destroyed. Autogun destroyed. Lgt. Nuclear Core destroyed. Heat Sink severed. Acquired Heat Sink. Map ----- +----------------------------------------------------+ | | | | | ?????????????????????????????????????????????????? | | ?????????????????????????????????????????????????? | | ?????????????????????????????????????????????????? | | ?????????????????????????????????????????????????? | | ?????????????????????????????????????????????????? | | ?????????????????????????????????????????????????? | | ?????????????????????????????????????????????????? | | ?????????????????????????????????????????????????? | | ?????????????????????????? ??????????????????????? | | ?????????????????????????? ??????????????????????? | | ?????????????????????????? ??????????????????????? | | ?????????????????????????? #???????????????????### | | ????????????????????????## #???????????????????# | | ????????????????????????+ #???????????????????# | | ????????????????????????# #???????????????????# | | ???????????????????/##### #???""??????????????# | | ??????????????????? #??""???????????????# | | ??????????????????? +? "?????????######## | | ????????????????? #? ??????????#% # | | ?????????????????" """"" # ??????????# !# | | ????????????????""""""""" # ???????????# !=[ # | | ???????????"" """ """ +????????????# !=[ # | | ?????????? glg#????????????# ==[ +% | | ?????????? @ #????????????# [ # | | ?????????????????########/####????????#######+## | | ??????????????????????# #????????# %%!# | | ??????????????????????# """ #????????# T """ # | | ??????????????????????# """ #????????# """ # | | ??????????????????????# """ #????????# """ # | | ??????????????????????# #????????# + | | ??????????????????????# """ #????????# """ # | | ??????????????????????# """ #????????# """ # | | ??????????????????????# """ #????????# """ # | | ??????????????????????# #????????# # | | ??????????????????????# """ #???#?############# | | ??????????????????????# """ #???# ## | | ??????????????????????# """ #???# """ "" ## | | ??????????????????????# #???# """ T" ## | | ??????????????????????#####/##???# """ "" ## | | ??????????????????????????# #????# ## | | ??????????????????# ####### #############+##### | | ??????????????????# % | | ????????????????? + % T | | ??????????????????# % % | | ??????????????????## ###############+### #### | | ???????????????????#?????????????? ?# ^ #??###+ | | ????????????????????????????????? """#^ ^#???? | | ??????????????????????????????? ? """# #???? | +----------------------------------------------------+ Best States ------------- Heat Dissipation 38 Energy Generation 19 Energy Capacity 250 Matter Stores 300 Matter Capacity 300 Sight Range 16 Terrain Scan Density 10 Evasion (%) 50 Recoil Reduction 2 Item Schematics ----------------- None Robot Schematics ------------------ None Fabricated ------------ Nothing Repaired ---------- Nothing Studied --------- None Alien Tech Used ----------------- None Achievements -------------- Overwhelming Challenges ------------ None Game ------ Seed ThunderArmoredRedistributor Manual? 0 Play Time 00:15:36 Cumulative 1.6 hours Start 2026.02.03 @ 20:15:12 End 2026.02.03 @ 20:30:24 Sessions 1 Manual Loads 0 Difficulty Rogue Special Mode None Game No. 5 Rogue 5 Adventurer 0 Explorer 0 Win Type - Total 0 Types 0/0/0/0/0/0/0/0/0/0 Lore% 0 Gallery% 4 Achievement% 4 Wizard Run 0 Options --------- Layout 1 ASCII 0 Keyboard 0 Movement Mouse Keybinds 0 Fullscreen 1 Font 32/SmallcapsGlow Map View 50x35 Zoom Use 0% Tactical HUD 0 Map Filters NONE Filters NONE Steam 1 RUN: c98c2b89-0a7f-47ff-85c2-f6d4c3c7d40a